bitfinex-derivatives/quotes_BNBF0:USTF0_20230901
["timestamp","ask_amount","ask_price","bid_price","bid_amount"]
[1693578299423,0.07619407,213.8,212.45,2.0]
[1693578299623,0.07619407,213.81,212.45,2.0]
[1693578300528,0.07619407,213.82,212.45,2.0]
[1693578302531,0.07619407,213.83,212.45,2.0]
[1693578302732,0.07619407,213.82,212.45,2.0]
[1693578303529,0.07619407,213.83,212.45,2.0]
[1693578303730,0.07619407,213.84,212.45,2.0]
[1693578304232,0.07619407,213.83,212.45,2.0]
[1693578304531,0.07619407,213.84,212.45,2.0]
[1693578304732,0.07619407,213.85,212.45,2.0]
[1693578305733,0.07619407,213.86,212.45,2.0]
[1693578306732,0.07619407,213.87,212.45,2.0]
[1693578307935,0.07619407,213.88,212.45,2.0]
[1693578309037,0.07619407,213.89,212.45,2.0]
[1693578310640,0.07619407,213.91,212.45,2.0]
[1693578311743,0.07619407,213.93,212.45,2.0]
[1693578312641,0.07619407,213.95,212.45,2.0]
[1693578313642,0.07619407,213.96,212.45,2.0]
[1693578313840,0.07619407,214.02,212.45,2.0]
[1693578314044,0.15238815,214.05,212.45,2.0]
[1693578314045,0.07619407,214.04,212.45,2.0]
[1693578314247,0.07619407,214.03,212.45,2.0]
[1693578314546,0.07619407,214.04,212.45,2.0]
[1693578320445,0.07619407,214.03,212.45,2.0]
[1693578321548,0.07619407,213.99,212.45,2.0]
[1693578321748,0.07619407,213.98,212.45,2.0]
[1693578322245,0.07619407,213.97,212.45,2.0]
[1693578326745,0.07619407,213.96,212.45,2.0]
[1693578331454,0.07619407,213.97,212.45,2.0]
[1693578333655,0.07619407,213.98,212.45,2.0]
[1693578336859,0.07619407,213.99,212.45,2.0]
[1693578340061,0.07619407,213.93,212.45,2.0]
[1693578343563,0.07619407,213.92,212.45,2.0]
[1693578344667,0.15186899,213.95,212.45,2.0]
[1693578344865,0.07593449,213.92,212.45,2.0]
[1693578347365,0.07593449,213.91,212.45,2.0]
[1693578347565,0.07593449,213.9,212.45,2.0]
[1693578349366,0.15186899,213.92,212.45,2.0]
[1693578349367,0.07593449,213.89,212.45,2.0]
[1693578350763,0.07593449,213.88,212.45,2.0]
[1693578351673,0.07593449,213.87,212.45,2.0]
[1693578352675,0.07593449,213.86,212.45,2.0]
[1693578354575,0.07593449,213.85,212.45,2.0]
[1693578354876,0.07593449,213.84,212.45,2.0]
[1693578355875,0.07593449,213.83,212.45,2.0]
[1693578356575,0.07593449,213.82,212.45,2.0]
[1693578357673,0.07593449,213.81,212.45,2.0]
[1693578357978,0.07593449,213.82,212.45,2.0]
[1693578358477,0.07593449,213.81,212.45,2.0]
[1693578359679,0.07593449,213.8,212.45,2.0]
[1693578362484,0.07593449,213.79,212.45,2.0]
[1693578362782,0.07593449,213.8,212.45,2.0]
[1693578363385,0.07593449,213.79,212.45,2.0]
[1693578364385,0.07593449,213.78,212.45,2.0]
[1693578366387,0.07593449,213.77,212.45,2.0]
[1693578366579,0.07593449,213.76,212.45,2.0]
[1693578367185,0.07593449,213.77,212.45,2.0]
[1693578367485,0.07593449,213.76,212.45,2.0]
[1693578368587,0.07593449,213.75,212.45,2.0]
[1693578369383,0.07593449,213.74,212.45,2.0]
[1693578370390,0.07593449,213.73,212.45,2.0]
[1693578371390,0.07593449,213.72,212.45,2.0]
[1693578372293,0.07593449,213.71,212.45,2.0]
[1693578373393,0.07593449,213.69,212.45,2.0]
[1693578374298,0.07593449,213.67,212.45,2.0]
[1693578376396,0.07593449,213.68,212.45,2.0]
[1693578376899,0.07593449,213.69,212.45,2.0]
[1693578377296,0.07593449,213.7,212.45,2.0]
[1693578379393,0.07593449,213.72,212.45,2.0]
[1693578380593,0.07593449,213.74,212.45,2.0]
[1693578381599,0.07593449,213.75,212.45,2.0]
[1693578383398,1.01245994,213.83,212.45,2.0]
[1693578383399,0.07593449,213.76,212.45,2.0]
[1693578383994,0.07593449,213.75,212.45,2.0]
[1693578384299,0.07593449,213.76,212.45,2.0]
[1693578386197,0.07593449,213.75,212.45,2.0]
[1693578386397,0.07593449,213.76,212.45,2.0]
[1693578387402,0.07593449,213.77,212.45,2.0]
[1693578388195,0.07593449,213.76,212.45,2.0]
[1693578389402,0.07593449,213.77,212.45,2.0]
[1693578389802,0.07593449,213.72,212.45,2.0]
[1693578390003,0.07593449,213.71,212.45,2.0]
[1693578390405,0.07593449,213.72,212.45,2.0]
[1693578391007,0.07593449,213.73,212.45,2.0]
[1693578391205,0.07593449,213.72,212.45,2.0]
[1693578391402,0.07593449,213.73,212.45,2.0]
[1693578392506,2.33846026,214.13,212.45,2.0]
[1693578392708,0.07608792,213.74,212.45,2.0]
[1693578393404,0.07608792,213.75,212.45,2.0]
[1693578394307,0.07608792,213.76,212.45,2.0]
[1693578395409,0.07608792,213.77,212.45,2.0]
[1693578398213,0.07608792,213.78,212.45,2.0]
[1693578398512,0.07608792,213.79,212.45,2.0]
[1693578398711,0.07608792,213.78,212.45,2.0]
[1693578399407,0.07608792,213.79,212.45,2.0]
[1693578400509,0.07608792,213.8,212.45,2.0]
[1693578400707,0.07608792,213.79,212.45,2.0]
[1693578402514,0.07608792,213.78,212.45,2.0]
[1693578405417,0.07608792,213.77,212.45,2.0]
[1693578407416,0.07608792,213.76,212.45,2.0]
[1693578407820,0.07608792,213.77,212.45,2.0]
[1693578409321,0.07608792,213.76,212.45,2.0]
[1693578412422,0.07608792,213.75,212.45,2.0]
[1693578414323,0.07608792,213.73,212.45,2.0]
[1693578415423,0.07608792,213.72,212.45,2.0]
[1693578415623,0.07608792,213.73,212.45,2.0]
[1693578415823,0.07608792,213.72,212.45,2.0]
[1693578416623,0.07608792,213.73,212.45,2.0]
[1693578417425,0.07608792,213.72,212.45,2.0]
[1693578419431,0.07608792,213.71,212.45,2.0]
[1693578420428,0.07608792,213.7,212.45,2.0]
[1693578421426,0.07608792,213.69,212.45,2.0]
[1693578423332,0.07608792,213.68,212.45,2.0]
[1693578424423,0.07608792,213.66,212.45,2.0]
[1693578429433,0.07608792,213.67,212.45,2.0]
[1693578429733,0.07608792,213.71,212.45,2.0]
[1693578430133,0.07608792,213.72,212.45,2.0]
[1693578431434,0.07608792,213.74,212.45,2.0]
[1693578432437,0.07608792,213.76,212.45,2.0]
[1693578434338,0.07608792,213.77,212.45,2.0]
[1693578435339,0.07608792,213.79,212.45,2.0]
[1693578436239,0.07608792,213.8,212.45,2.0]
[1693578436433,0.07608792,213.81,212.45,2.0]
[1693578436637,0.07608792,213.8,212.45,2.0]
[1693578437439,0.07608792,213.81,212.45,2.0]
[1693578438242,0.07608792,213.82,212.45,2.0]
[1693578439339,0.07608792,213.83,212.45,2.0]
[1693578439642,0.07608792,213.82,212.45,2.0]
[1693578440335,0.07608792,213.83,212.45,2.0]
[1693578442340,0.07608792,213.84,212.45,2.0]
[1693578443342,0.07608792,213.85,212.45,2.0]
[1693578444338,0.07608792,213.86,212.45,2.0]
[1693578445442,0.07608792,213.87,212.45,2.0]
[1693578446442,0.07608792,213.88,212.45,2.0]
[1693578449247,0.07608792,213.87,212.45,2.0]
[1693578449448,0.07608792,213.88,212.45,2.0]
[1693578450347,0.07608792,213.87,212.45,2.0]
[1693578451550,0.07608792,213.86,212.45,2.0]
[1693578451943,0.07608792,213.87,212.45,2.0]
[1693578452144,0.07608792,213.86,212.45,2.0]
[1693578453246,0.07608792,213.85,212.45,2.0]
[1693578454350,0.07608792,213.84,212.45,2.0]
[1693578455247,0.07608792,213.85,212.45,2.0]
[1693578458356,0.07608792,213.84,212.45,2.0]
[1693578460257,0.07608792,213.83,212.45,2.0]
[1693578461358,0.07608792,213.82,212.45,2.0]
[1693578462354,0.07608792,213.81,212.45,2.0]
[1693578463354,0.07608792,213.8,212.45,2.0]
[1693578464353,0.07608792,213.78,212.45,2.0]
[1693578466461,0.07608792,213.77,212.45,2.0]
[1693578468061,0.07608792,213.78,212.45,2.0]
[1693578471358,0.07608792,213.79,212.45,2.0]
[1693578471762,0.07608792,213.78,212.45,2.0]
[1693578471963,0.07608792,213.79,212.45,2.0]
[1693578472964,0.07608792,213.8,212.45,2.0]
[1693578475762,0.07608792,213.81,212.45,2.0]
[1693578475963,0.07608792,213.8,212.45,2.0]
[1693578476162,0.07608792,213.81,212.45,2.0]
[1693578479067,0.07608792,213.82,212.45,2.0]
[1693578480264,0.07608792,213.83,212.45,2.0]
[1693578480568,0.07608792,213.84,212.45,2.0]
[1693578480767,0.07608792,213.85,212.45,2.0]
[1693578481669,0.07608792,213.86,212.45,2.0]
[1693578482069,0.07608792,213.87,212.45,2.0]
[1693578483069,0.07608792,213.86,212.45,2.0]
[1693578483466,0.07608792,213.87,212.45,2.0]
[1693578486072,0.07608792,213.86,212.45,2.0]
[1693578492375,0.07608792,213.85,212.45,2.0]
[1693578492575,0.07608792,213.86,212.45,2.0]
[1693578492776,0.07608792,213.85,212.45,2.0]
[1693578493272,0.07608792,213.86,212.45,2.0]
[1693578493978,0.07608792,213.85,212.45,2.0]
[1693578494479,0.07608792,213.86,212.45,2.0]
[1693578494682,0.07608792,213.85,212.45,2.0]
[1693578495581,0.07608792,213.86,212.45,2.0]
[1693578496280,0.07608792,213.85,212.45,2.0]
[1693578498581,0.07608792,213.86,212.45,2.0]
[1693578499081,0.07608792,213.85,212.45,2.0]
[1693578503082,0.07608792,213.86,212.45,2.0]
[1693578507484,0.07608792,213.85,212.45,2.0]
[1693578507784,0.07608792,213.86,212.45,2.0]
[1693578507978,0.07608792,213.85,212.45,2.0]
[1693578513585,0.07608792,213.84,212.45,2.0]
[1693578513790,0.07608792,213.85,212.45,2.0]
[1693578514889,0.07608792,213.84,212.45,2.0]
[1693578518094,0.07608792,213.85,212.45,2.0]
[1693578518294,0.15217584,213.87,212.45,2.0]
[1693578518295,0.07608792,213.84,212.45,2.0]
[1693578526099,0.07608792,213.83,212.45,2.0]
[1693578526303,0.07608792,213.84,212.45,2.0]
[1693578527005,0.07311833,213.83,212.45,2.0]
[1693578529205,0.15217584,213.81,212.45,2.0]
[1693578529400,0.15217584,213.8,212.45,2.0]
[1693578531109,0.15217584,213.82,212.45,2.0]
[1693578532102,0.15217584,213.83,212.45,2.0]
[1693578533108,0.15217584,213.84,212.45,2.0]
[1693578537309,0.15217584,213.83,212.45,2.0]
[1693578539211,0.15217584,213.82,212.45,2.0]
[1693578543516,0.15217584,213.81,212.45,2.0]
[1693578545513,0.15217584,213.8,212.45,2.0]
[1693578545713,0.15217584,213.81,212.45,2.0]
[1693578546111,0.15217584,213.8,212.45,2.0]
[1693578548017,1.0145056,213.85,212.45,2.0]
[1693578548018,0.15217584,213.79,212.45,2.0]
[1693578550719,0.15217584,213.78,212.45,2.0]
[1693578553715,0.15217584,213.77,212.45,2.0]
[1693578554520,0.15217584,213.78,212.45,2.0]
[1693578554714,0.15217584,213.77,212.45,2.0]
[1693578556113,0.15217584,213.76,212.45,2.0]
[1693578556317,0.15217584,213.77,212.45,2.0]
[1693578557121,0.15217584,213.76,212.45,2.0]
[1693578558823,0.15217584,213.75,212.45,2.0]
[1693578559925,0.15217584,213.74,212.45,2.0]
[1693578561125,0.15217584,213.73,212.45,2.0]
[1693578562927,0.15217584,213.72,212.45,2.0]
[1693578564123,1.0145056,213.78,212.45,2.0]
[1693578564124,0.15217584,213.7,212.45,2.0]
[1693578566129,0.15217584,213.71,212.45,2.0]
[1693578567924,0.15217584,213.72,212.45,2.0]
[1693578568124,0.15217584,213.71,212.45,2.0]
[1693578568329,0.15217584,213.72,212.45,2.0]
[1693578568527,0.15217584,213.71,212.45,2.0]
[1693578568831,0.15217584,213.72,212.45,2.0]
[1693578570935,0.15217584,213.73,212.45,2.0]
[1693578573038,0.15217584,213.74,212.45,2.0]
[1693578575840,0.15217584,213.75,212.45,2.0]
[1693578578038,0.15217584,213.76,212.45,2.0]
[1693578579439,0.15217584,213.77,212.45,2.0]
[1693578580842,0.15217584,213.78,212.45,2.0]
[1693578581945,0.15217584,213.79,212.45,2.0]
[1693578582843,0.15217584,213.8,212.45,2.0]
[1693578583842,0.15217584,213.81,212.45,2.0]
[1693578584042,0.15217584,213.8,212.45,2.0]
[1693578587546,0.15217584,213.79,212.45,2.0]
[1693578589348,0.15217584,213.78,212.45,2.0]
[1693578589649,0.15217584,213.79,212.45,2.0]
[1693578590444,0.15217584,213.78,212.45,2.0]
[1693578590646,0.15217584,213.79,212.45,2.0]
[1693578592451,0.15217584,213.78,212.45,2.0]
[1693578592845,0.15217584,213.79,212.45,2.0]
[1693578605263,0.15217584,213.84,212.45,2.0]
[1693578606463,0.15217584,213.86,212.45,2.0]
[1693578606961,0.15217584,213.85,212.45,2.0]
[1693578607358,0.15217584,213.86,212.45,2.0]
[1693578608366,0.15217584,213.83,212.45,2.0]
[1693578608663,0.15217584,213.82,212.45,2.0]
[1693578609462,0.15217584,213.81,212.45,2.0]
[1693578618870,0.15217584,213.8,212.45,2.0]
[1693578621370,0.15217584,213.75,212.45,2.0]
[1693578621572,0.15217584,213.76,212.45,2.0]
[1693578623477,0.15217584,213.77,212.45,2.0]
[1693578626780,0.15217584,213.76,212.45,2.0]
[1693578627672,0.15217584,213.75,212.45,2.0]
[1693578627874,0.15217584,213.76,212.45,2.0]
[1693578628575,0.15217584,213.75,212.45,2.0]
[1693578630178,0.15217584,213.74,212.45,2.0]
[1693578630379,0.15217584,213.73,212.45,2.0]
[1693578631781,0.5072528,213.75,212.45,2.0]
[1693578631782,0.15217584,213.72,212.45,2.0]
[1693578633378,0.15217584,213.71,212.45,2.0]
[1693578634683,0.15217584,213.7,212.45,2.0]
[1693578637382,0.15217584,213.69,212.45,2.0]
[1693578638779,0.15217584,213.68,212.45,2.0]
[1693578641683,0.15217584,213.66,212.45,2.0]
[1693578642887,0.15217584,213.65,212.45,2.0]
[1693578644389,0.15217584,213.64,212.45,2.0]
[1693578646390,0.15217584,213.6,212.45,2.0]
[1693578647287,0.07592553,213.58,212.45,2.0]
[1693578647487,0.07592553,213.57,212.45,2.0]
[1693578647687,0.07592553,213.52,212.45,2.0]
[1693578648393,0.07592553,213.51,212.45,2.0]
[1693578649291,0.07592553,213.5,212.45,2.0]
[1693578649493,0.07592553,213.48,212.45,2.0]
[1693578651493,0.07592553,213.46,212.45,2.0]
[1693578652594,0.07592553,213.45,212.45,2.0]
[1693578653394,0.07592553,213.44,212.45,2.0]
[1693578654494,0.07592553,213.45,212.45,2.0]
[1693578654688,0.07592553,213.44,212.45,2.0]
[1693578656096,0.07592553,213.43,212.45,2.0]
[1693578656597,0.07592553,213.44,212.45,2.0]
[1693578658692,0.07592553,213.43,212.45,2.0]
[1693578661800,0.07592553,213.42,212.45,2.0]
[1693578662202,0.07592553,213.43,212.45,2.0]
[1693578663503,0.07592553,213.42,212.45,2.0]
[1693578665204,0.07592553,213.41,212.45,2.0]
[1693578665407,0.07592553,213.34,212.45,2.0]
[1693578665607,0.07592553,213.33,212.45,2.0]
[1693578666102,0.07592553,213.32,212.45,2.0]
[1693578667308,0.07592553,213.26,212.45,2.0]
[1693578667804,0.07592553,213.35,212.45,2.0]
[1693578668105,0.07592553,213.36,212.45,2.0]
[1693578668307,0.07592553,213.42,212.45,2.0]
[1693578668507,0.07592553,213.44,212.45,2.0]
[1693578668708,0.07592553,213.45,212.45,2.0]
[1693578669604,0.07592553,213.46,212.45,2.0]
[1693578670512,0.07592553,213.47,212.45,2.0]
[1693578670714,0.22810137,213.53,212.45,2.0]
[1693578671010,0.07592553,213.51,212.45,2.0]
[1693578671410,0.07592553,213.46,212.45,2.0]
[1693578671813,0.07592553,213.42,212.45,2.0]
[1693578672006,0.07592553,213.4,212.45,2.0]
[1693578672413,0.07592553,213.45,212.45,2.0]
[1693578672804,0.07592553,213.46,212.45,2.0]
[1693578673009,0.07592553,213.47,212.45,2.0]
[1693578673607,0.07592553,213.52,212.45,2.0]
[1693578673813,0.07592553,213.53,212.45,2.0]
[1693578675515,0.15217584,213.55,212.45,2.0]
[1693578675516,0.07592553,213.52,212.45,2.0]
[1693578676317,0.07592553,213.46,212.45,2.0]
[1693578676814,0.07592553,213.47,212.45,2.0]
[1693578677320,0.07592553,213.51,212.45,2.0]
[1693578677520,0.07592553,213.52,212.45,2.0]
[1693578678019,0.07592553,213.53,212.45,2.0]
[1693578678620,0.07592553,213.52,212.45,2.0]
[1693578679514,0.07592553,213.51,212.45,2.0]
[1693578679715,0.07592553,213.5,212.45,2.0]
[1693578679920,0.15217584,213.52,212.45,2.0]
[1693578679921,0.07592553,213.51,212.45,2.0]
[1693578680221,0.07592553,213.52,212.45,2.0]
[1693578680422,0.07592553,213.51,212.45,2.0]
[1693578683326,0.07592553,213.5,212.45,2.0]
[1693578683825,0.07592553,213.49,212.45,2.0]
[1693578684922,0.07592553,213.48,212.45,2.0]
[1693578685327,0.07592553,213.49,212.45,2.0]
[1693578686523,0.07592553,213.46,212.45,2.0]
[1693578686723,0.07592553,213.45,212.45,2.0]
[1693578688626,0.07592553,213.47,212.45,2.0]
[1693578688923,0.07592553,213.52,212.45,2.0]
[1693578689126,0.07592553,213.53,212.45,2.0]
[1693578689518,0.07592553,213.54,212.45,2.0]
[1693578689926,0.07592553,213.53,212.45,2.0]
[1693578690520,0.07592553,213.54,212.45,2.0]
[1693578691123,0.07592553,213.55,212.45,2.0]
[1693578691519,0.07592553,213.61,212.45,2.0]
[1693578691916,0.15217584,213.64,212.45,2.0]
[1693578691917,0.07592553,213.63,212.45,2.0]
[1693578693824,0.07592553,213.64,212.45,2.0]
[1693578694025,0.07592553,213.63,212.45,2.0]
[1693578694727,0.07592553,213.64,212.45,2.0]
[1693578697225,0.07592553,213.65,212.45,2.0]
[1693578697428,0.07592553,213.66,212.45,2.0]
[1693578697631,0.07592553,213.67,212.45,2.0]
[1693578698429,0.07592553,213.68,212.45,2.0]
[1693578699429,0.07592553,213.67,212.45,2.0]
[1693578699832,0.07592553,213.68,212.45,2.0]
[1693578700733,0.07592553,213.69,212.45,2.0]
[1693578701434,0.07592553,213.68,212.45,2.0]
[1693578701835,0.07592553,213.67,212.45,2.0]
[1693578702832,0.07592553,213.63,212.45,2.0]
[1693578704832,0.07592553,213.62,212.45,2.0]
[1693578705737,0.07592553,213.61,212.45,2.0]
[1693578706940,0.07592553,213.59,212.45,2.0]
[1693578708939,0.07592553,213.6,212.45,2.0]
[1693578709140,0.07592553,213.59,212.45,2.0]
[1693578709341,0.07592553,213.6,212.45,2.0]
[1693578709541,0.07592553,213.59,212.45,2.0]
[1693578709741,0.07592553,213.6,212.45,2.0]
[1693578711037,0.07592553,213.59,212.45,2.0]
[1693578712647,0.07592553,213.58,212.45,2.0]
[1693578713647,0.07592553,213.59,212.45,2.0]
[1693578714042,0.07592553,213.58,212.45,2.0]
[1693578717551,0.07592553,213.57,212.45,2.0]
[1693578717745,0.07592553,213.58,212.45,2.0]
[1693578718750,0.07592553,213.57,212.45,2.0]
[1693578719452,0.07592553,213.52,212.45,2.0]
[1693578720451,0.07592553,213.53,212.45,2.0]
[1693578720750,0.07592553,213.52,212.45,2.0]
[1693578721756,0.07592553,213.5,212.45,2.0]
[1693578722757,0.07592553,213.47,212.45,2.0]
[1693578723354,0.07592553,213.46,212.45,2.0]
[1693578724057,0.07592553,213.45,212.45,2.0]
[1693578724655,0.07592553,213.5,212.45,2.0]
[1693578724854,0.07592553,213.52,212.45,2.0]
[1693578725756,0.07592553,213.5,212.45,2.0]
[1693578726352,0.07592553,213.51,212.45,2.0]
[1693578727252,0.07592553,213.52,212.45,2.0]
[1693578727759,0.07592553,213.55,212.45,2.0]
[1693578728259,0.07592553,213.54,212.45,2.0]
[1693578729760,0.07592553,213.55,212.45,2.0]
[1693578729957,0.07592553,213.5,212.45,2.0]
[1693578731462,0.07592553,213.51,212.45,2.0]
[1693578731961,0.07592553,213.54,212.45,2.0]
[1693578732157,0.07592553,213.53,212.45,2.0]
[1693578733261,0.07592553,213.52,212.45,2.0]
[1693578733562,0.07592553,213.53,212.45,2.0]
[1693578734461,0.07592553,213.54,212.45,2.0]
[1693578737364,0.07592553,213.55,212.45,2.0]
[1693578737762,0.07592553,213.56,212.45,2.0]
[1693578738266,0.07592553,213.51,212.45,2.0]
[1693578738463,0.07592553,213.49,212.45,2.0]
[1693578739064,0.07592553,213.5,212.45,2.0]
[1693578739766,0.07592553,213.51,212.45,2.0]
[1693578739966,0.07592553,213.5,212.45,2.0]
[1693578740362,0.07592553,213.51,212.45,2.0]
[1693578740768,0.58317833,213.55,212.45,2.0]
[1693578740961,0.07592553,213.56,212.45,2.0]
[1693578741164,0.07592553,213.57,212.45,2.0]
[1693578741467,0.07592553,213.56,212.45,2.0]
[1693578743866,0.07592553,213.57,212.45,2.0]
[1693578744270,0.07592553,213.56,212.45,2.0]
[1693578744462,0.07592553,213.57,212.45,2.0]
[1693578746671,0.5072528,213.61,212.45,2.0]
[1693578746672,0.07592553,213.58,212.45,2.0]
[1693578747865,0.15217584,213.6,212.45,2.0]
[1693578747866,0.07592553,213.6,212.45,2.0]
[1693578748267,0.07592553,213.61,212.45,2.0]
[1693578748973,0.07592553,213.62,212.45,2.0]
[1693578749474,0.07592553,213.61,212.45,2.0]
[1693578750178,0.07592553,213.62,212.45,2.0]
[1693578750475,0.07592553,213.61,212.45,2.0]
[1693578752278,0.07592553,213.6,212.45,2.0]
[1693578752771,0.07592553,213.59,212.45,2.0]
[1693578753379,0.07592553,213.6,212.45,2.0]
[1693578753576,0.07592553,213.59,212.45,2.0]
[1693578755373,0.07592553,213.58,212.45,2.0]
[1693578755575,0.07592553,213.59,212.45,2.0]
[1693578756772,0.07592553,213.58,212.45,2.0]
[1693578756975,0.07592553,213.59,212.45,2.0]
[1693578757478,0.07592553,213.58,212.45,2.0]
[1693578757873,0.07592553,213.59,212.45,2.0]
[1693578758379,0.07592553,213.58,212.45,2.0]
[1693578758580,0.07592553,213.59,212.45,2.0]
[1693578759080,0.07592553,213.58,212.45,2.0]
[1693578759876,0.07592553,213.59,212.45,2.0]
[1693578760181,0.07592553,213.58,212.45,2.0]
[1693578762485,0.07592553,213.56,212.45,2.0]
[1693578762678,0.07592553,213.57,212.45,2.0]
[1693578764587,0.07592553,213.55,212.45,2.0]
[1693578767893,0.07592553,213.56,212.45,2.0]
[1693578768695,0.07592553,213.55,212.45,2.0]
[1693578769792,0.07592553,213.56,212.45,2.0]
[1693578772994,0.07592553,213.51,212.45,2.0]
[1693578773592,0.07592553,213.5,212.45,2.0]
[1693578773794,0.07592553,213.51,212.45,2.0]
[1693578776696,0.07592553,213.52,212.45,2.0]
[1693578778396,0.07592553,213.51,212.45,2.0]
[1693578778799,0.07592553,213.52,212.45,2.0]
[1693578779800,0.07592553,213.51,212.45,2.0]
[1693578780297,0.07592553,213.52,212.45,2.0]
[1693578781806,0.07592553,213.51,212.45,2.0]
[1693578783103,0.07592553,213.5,212.45,2.0]
[1693578783300,0.07592553,213.49,212.45,2.0]
[1693578785405,0.15217584,213.51,212.45,2.0]
[1693578785406,0.07592553,213.5,212.45,2.0]
[1693578786709,0.07592553,213.51,212.45,2.0]
[1693578787608,0.07592553,213.52,212.45,2.0]
[1693578788909,0.07592553,213.51,212.45,2.0]
[1693578789509,0.07592553,213.53,212.45,2.0]
[1693578792814,0.07592553,213.52,212.45,2.0]
[1693578793714,0.07592553,213.53,212.45,2.0]
[1693578794415,0.07592553,213.52,212.45,2.0]
[1693578794813,0.07592553,213.51,212.45,2.0]
[1693578796719,0.07592553,213.5,212.45,2.0]
[1693578798620,0.07592553,213.45,212.45,2.0]
[1693578798817,0.07592553,213.44,212.45,2.0]
[1693578799621,0.07592553,213.43,212.45,2.0]
[1693578800317,0.07592553,213.42,212.45,2.0]
[1693578800520,0.07592553,213.41,212.45,2.0]
[1693578800720,2.53626401,213.55,212.45,2.0]
[1693578800721,0.07592553,213.4,212.45,2.0]
[1693578801523,0.07592553,213.39,212.45,2.0]
[1693578802122,0.07592553,213.4,212.45,2.0]
[1693578802422,0.07592553,213.39,212.45,2.0]
[1693578802623,0.07592553,213.38,212.45,2.0]
[1693578803726,0.07592553,213.37,212.45,2.0]
[1693578804726,0.07592553,213.36,212.45,2.0]
[1693578805527,0.07592553,213.35,212.45,2.0]
[1693578806629,0.15217584,213.37,212.45,2.0]
[1693578806630,0.07592553,213.34,212.45,2.0]
[1693578806828,0.07592553,213.35,212.45,2.0]
[1693578807524,0.15217584,213.37,212.45,2.0]
[1693578807525,0.07592553,213.34,212.45,2.0]
[1693578808233,0.07592553,213.35,212.45,2.0]
[1693578808626,0.07592553,213.34,212.45,2.0]
[1693578810926,0.07592553,213.35,212.45,2.0]
[1693578811131,0.07592553,213.34,212.45,2.0]
[1693578811635,0.07592553,213.35,212.45,2.0]
[1693578811933,0.07592553,213.34,212.45,2.0]
[1693578813332,0.07592553,213.35,212.45,2.0]
[1693578815536,0.07592553,213.4,212.45,2.0]
[1693578815734,0.07592553,213.41,212.45,2.0]
[1693578816331,0.07592553,213.42,212.45,2.0]
[1693578816635,0.07592553,213.43,212.45,2.0]
[1693578817430,0.07592553,213.44,212.45,2.0]
[1693578817934,0.07592553,213.45,212.45,2.0]
[1693578819636,0.07592553,213.47,212.45,2.0]
[1693578819837,0.07592553,213.52,212.45,2.0]
[1693578820033,0.07592553,213.53,212.45,2.0]
[1693578820838,0.07592553,213.54,212.45,2.0]
[1693578822439,0.07592553,213.55,212.45,2.0]
[1693578822639,0.07592553,213.56,212.45,2.0]
[1693578824639,0.07592553,213.57,212.45,2.0]
[1693578825240,0.07592553,213.58,212.45,2.0]
[1693578826043,0.07592553,213.6,212.45,2.0]
[1693578827237,0.07592553,213.59,212.45,2.0]
[1693578827640,0.07592553,213.6,212.45,2.0]
[1693578831447,0.07592553,213.59,212.45,2.0]
[1693578831641,0.07592553,213.6,212.45,2.0]
[1693578833748,0.07592553,213.59,212.45,2.0]
[1693578834249,0.07592553,213.6,212.45,2.0]